[Event "Chessable Masters - Torneo preliminare"]
[White "Maghsoodloo, Parham"]
[Black "Xu, Yi"]
[WhiteFideId "12539929"]
[BlackFideId "8605564"]
[WhiteElo "2660"]
[BlackElo "2402"]
[Result "0-1"]
[Round "1"]
[TimeControl "600+2"]
[Date "2023.03.13"]
[WhiteClock "0:01:44"]
[BlackClock "0:00:09"]

1. d4 {[%clk 0:08:35]}  Nf6 {[%clk 0:10:00]} 2. c4 {[%clk 0:08:28]}  e6 {[%clk 0:10:00]} 3. Nf3 {[%clk 0:08:25]}  d5 {[%clk 0:10:00]} 4. Nc3 {[%clk 0:08:23]}  Bb4 {[%clk 0:10:00]} 5. Bg5 {[%clk 0:08:13]}  h6 {[%clk 0:10:00]} 6. Bxf6 {[%clk 0:08:13]}  Qxf6 {[%clk 0:10:01]} 7. Qa4+ {[%clk 0:08:14]}  Nc6 {[%clk 0:10:02]} 8. e3 {[%clk 0:08:15]}  O-O {[%clk 0:10:02]} 9. Be2 {[%clk 0:08:14]}  Bd7 {[%clk 0:08:56]} 10. Qb3 {[%clk 0:07:58]}  dxc4 {[%clk 0:08:55]} 11. Qxc4 {[%clk 0:07:59]}  Qg6 {[%clk 0:08:44]} 12. O-O {[%clk 0:07:51]}  Bd6 {[%clk 0:08:44]} 13. a3 {[%clk 0:07:25]}  e5 {[%clk 0:07:12]} 14. Bd3 {[%clk 0:07:23]}  Na5 {[%clk 0:06:30]} 15. Bxg6 {[%clk 0:07:15]}  Nxc4 {[%clk 0:06:30]} 16. Be4 {[%clk 0:07:16]}  exd4 {[%clk 0:06:06]} 17. Nxd4 {[%clk 0:07:17]}  c6 {[%clk 0:05:59]} 18. b4 {[%clk 0:06:56]}  a5 {[%clk 0:05:42]} 19. b5 {[%clk 0:06:56]}  Nxa3 {[%clk 0:04:53]} 20. bxc6 {[%clk 0:06:56]}  bxc6 {[%clk 0:04:54]} 21. Na4 {[%clk 0:06:08]}  Rab8 {[%clk 0:03:32]} 22. Rfd1 {[%clk 0:05:34]}  Bb4 {[%clk 0:03:19]} 23. Nxc6 {[%clk 0:05:29]}  Bxc6 {[%clk 0:03:19]} 24. Bxc6 {[%clk 0:05:31]}  Rfd8 {[%clk 0:03:14]} 25. Bd5 {[%clk 0:05:30]}  Kf8 {[%clk 0:03:08]} 26. Rac1 {[%clk 0:05:24]}  Rbc8 {[%clk 0:03:00]} 27. Rxc8 {[%clk 0:05:22]}  Rxc8 {[%clk 0:03:01]} 28. Bb3 {[%clk 0:05:20]}  Nc4 {[%clk 0:02:34]} 29. g4 {[%clk 0:04:54]}  Nd2 {[%clk 0:02:22]} 30. Bd5 {[%clk 0:04:54]}  Ke7 {[%clk 0:02:05]} 31. Kg2 {[%clk 0:04:54]}  Rd8 {[%clk 0:01:38]} 32. Ba2 {[%clk 0:04:47]}  Rc8 {[%clk 0:01:18]} 33. h4 {[%clk 0:04:46]}  Rc2 {[%clk 0:01:17]} 34. Bd5 {[%clk 0:04:47]}  f6 {[%clk 0:01:16]} 35. Kg3 {[%clk 0:04:32]}  Rc8 {[%clk 0:00:59]} 36. h5 {[%clk 0:04:24]}  Rd8 {[%clk 0:00:57]} 37. e4 {[%clk 0:03:55]}  Nxe4+ {[%clk 0:00:53]} 38. Kg2 {[%clk 0:03:54]}  Nc3 {[%clk 0:00:47]} 39. Re1+ {[%clk 0:03:33]}  Kf8 {[%clk 0:00:47]} 40. Nxc3 {[%clk 0:03:10]}  Rxd5 {[%clk 0:00:48]} 41. Re3 {[%clk 0:03:06]}  Bxc3 {[%clk 0:00:42]} 42. Rxc3 {[%clk 0:03:06]}  Rd8 {[%clk 0:00:44]} 43. Kf3 {[%clk 0:02:54]}  Ra8 {[%clk 0:00:43]} 44. Ke3 {[%clk 0:02:55]}  a4 {[%clk 0:00:42]} 45. Ra3 {[%clk 0:02:49]}  Ke7 {[%clk 0:00:43]} 46. Kd4 {[%clk 0:02:48]}  Kd6 {[%clk 0:00:44]} 47. f4 {[%clk 0:02:48]}  Ra7 {[%clk 0:00:41]} 48. Kc4 {[%clk 0:02:49]}  f5 {[%clk 0:00:31]} 49. g5 {[%clk 0:02:35]}  hxg5 {[%clk 0:00:29]} 50. fxg5 {[%clk 0:02:37]}  Ke5 {[%clk 0:00:30]} 51. Kd3 {[%clk 0:02:11]}  Kf4 {[%clk 0:00:25]} 52. h6 {[%clk 0:02:12]}  g6 {[%clk 0:00:18]} 53. Kd4 {[%clk 0:02:10]}  Kxg5 {[%clk 0:00:19]} 54. Rh3 {[%clk 0:02:10]}  a3 {[%clk 0:00:09]} 55. h7 {[%clk 0:02:09]}  a2 {[%clk 0:00:10]} 56. h8=Q {[%clk 0:01:56]}  a1=Q+ {[%clk 0:00:11]} 57. Rc3 {[%clk 0:01:58]}  Rd7+ {[%clk 0:00:09]} 58. Ke3 {[%clk 0:01:42]}  Qe1+ {[%clk 0:00:09]} 59. Kf3 {[%clk 0:01:43]}  Qe4+ {[%clk 0:00:06]} 60. Kg3 {[%clk 0:01:41]}  Qf4+ {[%clk 0:00:07]} 61. Kh3 {[%clk 0:01:42]}  Qg4+ {[%clk 0:00:08]} 62. Kh2 {[%clk 0:01:44]}  Rd2+ {[%clk 0:00:09]} 0-1


[Site "Internet"]

[Event "Chessable Masters - Torneo preliminare"]
[White "Petrov, Nikita"]
[Black "Predke, Alexandr"]
[WhiteFideId "4101286"]
[BlackFideId "24107581"]
[WhiteElo "2514"]
[BlackElo "2582"]
[Result "1-0"]
[Round "1"]
[TimeControl "600+2"]
[Date "2023.03.13"]
[WhiteClock "0:00:17"]
[BlackClock "0:00:09"]

1. d4 {[%clk 0:10:01]}  Nf6 {[%clk 0:09:58]} 2. Bg5 {[%clk 0:10:01]}  e6 {[%clk 0:09:55]} 3. e4 {[%clk 0:10:01]}  h6 {[%clk 0:09:56]} 4. Bxf6 {[%clk 0:10:02]}  Qxf6 {[%clk 0:09:58]} 5. c3 {[%clk 0:10:03]}  d5 {[%clk 0:09:43]} 6. Bd3 {[%clk 0:10:03]}  dxe4 {[%clk 0:09:35]} 7. Bxe4 {[%clk 0:10:04]}  Bd6 {[%clk 0:09:32]} 8. Nf3 {[%clk 0:10:00]}  O-O {[%clk 0:09:26]} 9. O-O {[%clk 0:09:59]}  Rd8 {[%clk 0:09:23]} 10. Nbd2 {[%clk 0:09:30]}  c5 {[%clk 0:09:08]} 11. dxc5 {[%clk 0:08:49]}  Bxc5 {[%clk 0:09:04]} 12. Qe2 {[%clk 0:08:50]}  Qe7 {[%clk 0:07:45]} 13. Rad1 {[%clk 0:08:26]}  Nd7 {[%clk 0:07:29]} 14. Bc2 {[%clk 0:08:11]}  Nf8 {[%clk 0:07:15]} 15. Ne4 {[%clk 0:07:50]}  Bd7 {[%clk 0:07:04]} 16. Nxc5 {[%clk 0:07:21]}  Qxc5 {[%clk 0:07:06]} 17. Nd4 {[%clk 0:05:37]}  e5 {[%clk 0:06:05]} 18. Nb3 {[%clk 0:05:16]}  Bb5 {[%clk 0:05:25]} 19. Nxc5 {[%clk 0:03:59]}  Bxe2 {[%clk 0:05:25]} 20. Rxd8 {[%clk 0:04:01]}  Rxd8 {[%clk 0:05:26]} 21. Re1 {[%clk 0:04:02]}  Rd2 {[%clk 0:05:04]} 22. Bb3 {[%clk 0:04:03]}  b6 {[%clk 0:04:44]} 23. Ne4 {[%clk 0:04:02]}  Rxb2 {[%clk 0:04:45]} 24. Nd6 {[%clk 0:04:00]}  Ne6 {[%clk 0:04:14]} 25. Nc8 {[%clk 0:02:41]}  Nc5 {[%clk 0:03:38]} 26. Nxa7 {[%clk 0:02:16]}  Nxb3 {[%clk 0:03:22]} 27. axb3 {[%clk 0:02:18]}  Rxb3 {[%clk 0:03:23]} 28. h3 {[%clk 0:01:52]}  Rb2 {[%clk 0:02:52]} 29. Nc6 {[%clk 0:01:25]}  f6 {[%clk 0:02:48]} 30. Ra1 {[%clk 0:01:26]}  Rc2 {[%clk 0:01:52]} 31. Ra7 {[%clk 0:00:41]}  Kh7 {[%clk 0:01:44]} 32. Ne7 {[%clk 0:00:20]}  Bd3 {[%clk 0:01:06]} 33. Nd5 {[%clk 0:00:20]}  Kg6 {[%clk 0:01:01]} 34. Ne7+ {[%clk 0:00:18]}  Kh7 {[%clk 0:00:41]} 35. Nd5 {[%clk 0:00:20]}  Kg8 {[%clk 0:00:19]} 36. Ra8+ {[%clk 0:00:13]}  Kf7 {[%clk 0:00:15]} 37. Ra7+ {[%clk 0:00:14]}  Ke6 {[%clk 0:00:14]} 38. Nxb6 {[%clk 0:00:16]}  Rxc3 {[%clk 0:00:07]} 39. Rxg7 {[%clk 0:00:13]}  Rc1+ {[%clk 0:00:07]} 40. Kh2 {[%clk 0:00:14]}  Bb5 {[%clk 0:00:05]} 41. Na8 {[%clk 0:00:05]}  Rc2 {[%clk 0:00:04]} 42. Nc7+ {[%clk 0:00:06]}  Kf5 {[%clk 0:00:03]} 43. Nxb5 {[%clk 0:00:07]}  Rxf2 {[%clk 0:00:04]} 44. Nd6+ {[%clk 0:00:08]}  Ke6 {[%clk 0:00:05]} 45. Ne4 {[%clk 0:00:09]}  Rf4 {[%clk 0:00:06]} 46. Ng3 {[%clk 0:00:10]}  e4 {[%clk 0:00:06]} 47. Rg6 {[%clk 0:00:12]}  Ke5 {[%clk 0:00:06]} 48. Rxh6 {[%clk 0:00:13]}  e3 {[%clk 0:00:07]} 49. Rh5+ {[%clk 0:00:14]}  Kd4 {[%clk 0:00:07]} 50. Ne2+ {[%clk 0:00:14]}  Ke4 {[%clk 0:00:07]} 51. Nxf4 {[%clk 0:00:16]}  Kxf4 {[%clk 0:00:09]} 52. Kg1 {[%clk 0:00:17]} 1-0


[Site "Internet"]

[Event "Chessable Masters - Torneo preliminare"]
[White "Le, Tuan Minh"]
[Black "Mekhitarian, Krikor Sevag"]
[WhiteFideId "12401153"]
[BlackFideId "2107660"]
[WhiteElo "2489"]
[BlackElo "2594"]
[Result "1-0"]
[Round "1"]
[TimeControl "600+2"]
[Date "2023.03.13"]
[WhiteClock "0:03:08"]
[BlackClock "0:01:49"]

1. d4 {[%clk 0:09:52]}  Nf6 {[%clk 0:10:00]} 2. Nf3 {[%clk 0:09:51]}  d5 {[%clk 0:10:00]} 3. Bg5 {[%clk 0:09:52]}  Ne4 {[%clk 0:09:58]} 4. Bf4 {[%clk 0:09:53]}  c5 {[%clk 0:09:59]} 5. c3 {[%clk 0:09:54]}  Qb6 {[%clk 0:09:58]} 6. Qb3 {[%clk 0:09:46]}  c4 {[%clk 0:09:46]} 7. Qxb6 {[%clk 0:09:43]}  axb6 {[%clk 0:09:48]} 8. Nbd2 {[%clk 0:09:45]}  Nxd2 {[%clk 0:09:11]} 9. Nxd2 {[%clk 0:09:47]}  b5 {[%clk 0:09:07]} 10. e4 {[%clk 0:09:44]}  e6 {[%clk 0:09:03]} 11. g3 {[%clk 0:09:32]}  Bd7 {[%clk 0:07:12]} 12. exd5 {[%clk 0:08:27]}  exd5 {[%clk 0:07:12]} 13. Bg2 {[%clk 0:08:29]}  Be6 {[%clk 0:07:04]} 14. O-O {[%clk 0:08:25]}  Nc6 {[%clk 0:05:02]} 15. Rfe1 {[%clk 0:05:45]}  Kd7 {[%clk 0:04:59]} 16. a4 {[%clk 0:05:45]}  Rxa4 {[%clk 0:03:18]} 17. Rxa4 {[%clk 0:05:43]}  bxa4 {[%clk 0:03:20]} 18. Nxc4 {[%clk 0:05:44]}  dxc4 {[%clk 0:03:21]} 19. d5 {[%clk 0:05:46]}  Bc5 {[%clk 0:03:18]} 20. Rd1 {[%clk 0:05:09]}  Ke7 {[%clk 0:03:08]} 21. dxe6 {[%clk 0:03:38]}  fxe6 {[%clk 0:03:07]} 22. Bg5+ {[%clk 0:03:28]}  Kf7 {[%clk 0:02:56]} 23. Rd7+ {[%clk 0:03:28]}  Kg6 {[%clk 0:02:57]} 24. h4 {[%clk 0:03:15]}  Rf8 {[%clk 0:02:39]} 25. Be4+ {[%clk 0:03:16]}  Kh5 {[%clk 0:02:40]} 26. Rxg7 {[%clk 0:03:17]}  Ne5 {[%clk 0:02:00]} 27. Bf4 {[%clk 0:03:08]}  Ng6 {[%clk 0:01:49]} 28. Bf3# {[%clk 0:03:08]} 1-0


[Site "Internet"]

[Event "Chessable Masters - Torneo preliminare"]
[White "Volkov, Sergey"]
[Black "Martinez Alcantara, Jose Eduardo"]
[WhiteFideId "4122763"]
[BlackFideId "3805662"]
[WhiteElo "2496"]
[BlackElo "2643"]
[Result "0-1"]
[Round "1"]
[TimeControl "600+2"]
[Date "2023.03.13"]
[WhiteClock "0:00:39"]
[BlackClock "0:00:17"]

1. d4 {[%clk 0:09:48]}  Nf6 {[%clk 0:10:00]} 2. c4 {[%clk 0:09:48]}  e6 {[%clk 0:09:55]} 3. Nc3 {[%clk 0:09:48]}  Bb4 {[%clk 0:09:55]} 4. f3 {[%clk 0:09:48]}  c5 {[%clk 0:09:54]} 5. d5 {[%clk 0:09:24]}  d6 {[%clk 0:09:48]} 6. e4 {[%clk 0:09:14]}  O-O {[%clk 0:09:49]} 7. Ne2 {[%clk 0:09:14]}  b5 {[%clk 0:09:49]} 8. Nf4 {[%clk 0:09:15]}  e5 {[%clk 0:09:50]} 9. Ne2 {[%clk 0:09:08]}  bxc4 {[%clk 0:09:51]} 10. Ng3 {[%clk 0:09:08]}  Ba6 {[%clk 0:08:52]} 11. Be2 {[%clk 0:09:05]}  Re8 {[%clk 0:08:44]} 12. O-O {[%clk 0:09:05]}  Nbd7 {[%clk 0:08:32]} 13. Nf5 {[%clk 0:09:02]}  Nf8 {[%clk 0:08:27]} 14. Ne3 {[%clk 0:08:45]}  Ng6 {[%clk 0:08:20]} 15. Bxc4 {[%clk 0:08:43]}  Bc8 {[%clk 0:08:02]} 16. Ne2 {[%clk 0:07:34]}  Bd7 {[%clk 0:07:55]} 17. Ng3 {[%clk 0:07:27]}  Nh4 {[%clk 0:07:11]} 18. Nc2 {[%clk 0:07:26]}  h6 {[%clk 0:07:07]} 19. Nxb4 {[%clk 0:07:19]}  cxb4 {[%clk 0:07:09]} 20. Be3 {[%clk 0:07:20]}  Qb8 {[%clk 0:06:50]} 21. Qd3 {[%clk 0:07:14]}  Ng6 {[%clk 0:06:43]} 22. Qd2 {[%clk 0:07:10]}  a5 {[%clk 0:06:31]} 23. a3 {[%clk 0:07:10]}  Rc8 {[%clk 0:06:32]} 24. Rfc1 {[%clk 0:07:09]}  Qb7 {[%clk 0:06:22]} 25. axb4 {[%clk 0:07:07]}  axb4 {[%clk 0:06:23]} 26. Rxa8 {[%clk 0:07:07]}  Rxa8 {[%clk 0:06:25]} 27. Bb3 {[%clk 0:07:01]}  h5 {[%clk 0:05:23]} 28. h3 {[%clk 0:06:48]}  h4 {[%clk 0:05:22]} 29. Ne2 {[%clk 0:06:48]}  Nh5 {[%clk 0:05:18]} 30. Kh2 {[%clk 0:06:47]}  Qa6 {[%clk 0:04:47]} 31. Bc4 {[%clk 0:06:21]}  Qb7 {[%clk 0:04:41]} 32. Bb3 {[%clk 0:06:21]}  Qa6 {[%clk 0:04:41]} 33. Bc4 {[%clk 0:06:21]}  Qb7 {[%clk 0:04:43]} 34. Bd3 {[%clk 0:06:17]}  b3 {[%clk 0:04:14]} 35. Rc3 {[%clk 0:06:17]}  Ra1 {[%clk 0:04:08]} 36. Bc4 {[%clk 0:06:14]}  Ba4 {[%clk 0:03:04]} 37. Rc1 {[%clk 0:06:10]}  Rxc1 {[%clk 0:03:00]} 38. Qxc1 {[%clk 0:06:11]}  Bb5 {[%clk 0:02:51]} 39. Qc3 {[%clk 0:05:56]}  Qa6 {[%clk 0:02:46]} 40. Bxb5 {[%clk 0:05:49]}  Qxb5 {[%clk 0:02:47]} 41. Qd2 {[%clk 0:05:50]}  Qc4 {[%clk 0:02:42]} 42. Bf2 {[%clk 0:05:42]}  Ngf4 {[%clk 0:02:13]} 43. Nxf4 {[%clk 0:04:23]}  Nxf4 {[%clk 0:02:14]} 44. Bxh4 {[%clk 0:04:24]}  Qc2 {[%clk 0:02:15]} 45. Be1 {[%clk 0:04:24]}  Nd3 {[%clk 0:02:09]} 46. Qa5 {[%clk 0:04:24]}  Kh7 {[%clk 0:01:50]} 47. Bg3 {[%clk 0:04:05]}  Qxb2 {[%clk 0:01:30]} 48. Qb6 {[%clk 0:03:47]}  Qc2 {[%clk 0:01:13]} 49. Qd8 {[%clk 0:03:40]}  Qc1 {[%clk 0:01:14]} 50. Qd7 {[%clk 0:02:42]}  b2 {[%clk 0:00:53]} 51. Qf5+ {[%clk 0:02:42]}  Kg8 {[%clk 0:00:54]} 52. h4 {[%clk 0:01:15]}  b1=Q {[%clk 0:00:49]} 53. Kh3 {[%clk 0:01:15]}  Nf4+ {[%clk 0:00:35]} 54. Kg4 {[%clk 0:01:16]}  Nxg2 {[%clk 0:00:31]} 55. Qd7 {[%clk 0:01:08]}  Ne3+ {[%clk 0:00:30]} 56. Kh5 {[%clk 0:01:08]}  Qb8 {[%clk 0:00:23]} 57. Bf4 {[%clk 0:01:01]}  exf4 {[%clk 0:00:21]} 58. e5 {[%clk 0:01:01]}  Qcb1 {[%clk 0:00:18]} 59. Kg5 {[%clk 0:00:39]}  Qg6+ {[%clk 0:00:16]} 60. Kxf4 {[%clk 0:00:39]}  Ng2# {[%clk 0:00:17]} 0-1


[Site "Internet"]

[Event "Chessable Masters - Torneo preliminare"]
[White "Vokhidov, Shamsiddin"]
[Black "Pantsulaia, Levan"]
[WhiteFideId "14204223"]
[BlackFideId "13602071"]
[WhiteElo "2514"]
[BlackElo "2533"]
[Result "1/2-1/2"]
[Round "1"]
[TimeControl "600+2"]
[Date "2023.03.13"]
[WhiteClock "0:00:36"]
[BlackClock "0:00:59"]

1. e4 {[%clk 0:10:01]}  c5 {[%clk 0:09:57]} 2. Nf3 {[%clk 0:10:01]}  e6 {[%clk 0:09:58]} 3. d4 {[%clk 0:10:02]}  cxd4 {[%clk 0:09:59]} 4. Nxd4 {[%clk 0:10:04]}  a6 {[%clk 0:10:00]} 5. c4 {[%clk 0:10:05]}  Nf6 {[%clk 0:10:00]} 6. Nc3 {[%clk 0:10:06]}  Qc7 {[%clk 0:10:01]} 7. a3 {[%clk 0:10:07]}  Nxe4 {[%clk 0:10:00]} 8. Nxe4 {[%clk 0:10:08]}  Qe5 {[%clk 0:10:02]} 9. Bd3 {[%clk 0:09:44]}  Qxd4 {[%clk 0:10:02]} 10. O-O {[%clk 0:09:44]}  f5 {[%clk 0:09:53]} 11. Be3 {[%clk 0:09:43]}  Qxb2 {[%clk 0:09:42]} 12. Rb1 {[%clk 0:09:43]}  Qxa3 {[%clk 0:08:50]} 13. Rb3 {[%clk 0:08:41]}  Qe7 {[%clk 0:08:48]} 14. Bc5 {[%clk 0:08:37]}  Qd8 {[%clk 0:07:19]} 15. Nd6+ {[%clk 0:08:36]}  Bxd6 {[%clk 0:07:20]} 16. Bxd6 {[%clk 0:08:38]}  Qf6 {[%clk 0:07:21]} 17. Re1 {[%clk 0:07:15]}  Nc6 {[%clk 0:07:11]} 18. c5 {[%clk 0:07:15]}  Ne7 {[%clk 0:06:15]} 19. Qh5+ {[%clk 0:06:26]}  Qf7 {[%clk 0:05:33]} 20. Qh4 {[%clk 0:06:04]}  Qf6 {[%clk 0:05:26]} 21. Qh5+ {[%clk 0:04:43]}  Qf7 {[%clk 0:05:27]} 22. Qg5 {[%clk 0:04:40]}  h6 {[%clk 0:05:25]} 23. Qh4 {[%clk 0:04:35]}  Qf6 {[%clk 0:04:59]} 24. Qh5+ {[%clk 0:04:22]}  Qg6 {[%clk 0:04:41]} 25. Qxg6+ {[%clk 0:04:12]}  Nxg6 {[%clk 0:04:43]} 26. Bxf5 {[%clk 0:04:14]}  Ne7 {[%clk 0:04:43]} 27. Be4 {[%clk 0:04:13]}  Rf8 {[%clk 0:04:08]} 28. h4 {[%clk 0:03:21]}  Rf7 {[%clk 0:03:28]} 29. Rd1 {[%clk 0:03:06]}  Nf5 {[%clk 0:03:25]} 30. Be5 {[%clk 0:02:35]}  Nxh4 {[%clk 0:03:10]} 31. g4 {[%clk 0:02:35]}  g5 {[%clk 0:02:54]} 32. Bg3 {[%clk 0:02:29]}  Kd8 {[%clk 0:02:25]} 33. Rb6 {[%clk 0:02:04]}  Re7 {[%clk 0:01:59]} 34. Be5 {[%clk 0:01:46]}  a5 {[%clk 0:01:59]} 35. Bf6 {[%clk 0:01:42]}  Ke8 {[%clk 0:02:00]} 36. Bxe7 {[%clk 0:01:42]}  Kxe7 {[%clk 0:02:02]} 37. Bxb7 {[%clk 0:01:41]}  Bxb7 {[%clk 0:01:47]} 38. Rxb7 {[%clk 0:01:42]}  Nf3+ {[%clk 0:01:47]} 39. Kg2 {[%clk 0:01:41]}  Ne5 {[%clk 0:01:49]} 40. c6 {[%clk 0:01:32]}  Nxc6 {[%clk 0:01:41]} 41. Rdxd7+ {[%clk 0:01:33]}  Kf6 {[%clk 0:01:42]} 42. Rh7 {[%clk 0:01:34]}  a4 {[%clk 0:01:36]} 43. Rxh6+ {[%clk 0:01:34]}  Ke5 {[%clk 0:01:36]} 44. Rb5+ {[%clk 0:01:29]}  Kd6 {[%clk 0:01:34]} 45. Rh1 {[%clk 0:01:27]}  a3 {[%clk 0:01:13]} 46. Rd1+ {[%clk 0:01:25]}  Ke7 {[%clk 0:01:06]} 47. Rc5 {[%clk 0:00:47]}  a2 {[%clk 0:00:57]} 48. Rxc6 {[%clk 0:00:33]}  a1=Q {[%clk 0:00:57]} 49. Rxa1 {[%clk 0:00:35]}  Rxa1 {[%clk 0:00:58]} 50. Rc5 {[%clk 0:00:36]}  Kf6 {[%clk 0:00:59]} 1/2-1/2


[Site "Internet"]

[Event "Chessable Masters - Torneo preliminare"]
[White "Raja, Rithvik R"]
[Black "Lenderman, Aleksandr"]
[WhiteFideId "35007394"]
[BlackFideId "2021285"]
[WhiteElo "2387"]
[BlackElo "2646"]
[Result "1/2-1/2"]
[Round "1"]
[TimeControl "600+2"]
[Date "2023.03.13"]
[WhiteClock "0:03:58"]
[BlackClock "0:03:33"]

1. d4 {[%clk 0:09:56]}  e6 {[%clk 0:09:55]} 2. c4 {[%clk 0:09:51]}  b6 {[%clk 0:09:55]} 3. e4 {[%clk 0:09:49]}  Bb4+ {[%clk 0:09:55]} 4. Bd2 {[%clk 0:09:49]}  Bxd2+ {[%clk 0:09:55]} 5. Qxd2 {[%clk 0:09:46]}  d5 {[%clk 0:09:56]} 6. cxd5 {[%clk 0:09:00]}  exd5 {[%clk 0:09:58]} 7. exd5 {[%clk 0:08:42]}  Ne7 {[%clk 0:09:55]} 8. Bb5+ {[%clk 0:08:38]}  Nd7 {[%clk 0:09:49]} 9. Nc3 {[%clk 0:08:34]}  O-O {[%clk 0:09:46]} 10. Nge2 {[%clk 0:08:28]}  Bb7 {[%clk 0:09:36]} 11. d6 {[%clk 0:08:18]}  cxd6 {[%clk 0:09:33]} 12. O-O {[%clk 0:08:19]}  Nf6 {[%clk 0:09:31]} 13. f3 {[%clk 0:08:06]}  a6 {[%clk 0:09:21]} 14. Bd3 {[%clk 0:08:04]}  Re8 {[%clk 0:09:10]} 15. Rac1 {[%clk 0:07:53]}  b5 {[%clk 0:09:03]} 16. Kh1 {[%clk 0:07:27]}  Rc8 {[%clk 0:08:46]} 17. Nf4 {[%clk 0:07:15]}  Ng6 {[%clk 0:08:45]} 18. Rfe1 {[%clk 0:07:10]}  Qb6 {[%clk 0:08:38]} 19. Bf5 {[%clk 0:07:03]}  Rcd8 {[%clk 0:08:27]} 20. h3 {[%clk 0:06:33]}  b4 {[%clk 0:08:09]} 21. Ne4 {[%clk 0:06:30]}  Nxe4 {[%clk 0:08:03]} 22. fxe4 {[%clk 0:06:03]}  Nxf4 {[%clk 0:07:34]} 23. Qxf4 {[%clk 0:06:05]}  Qxd4 {[%clk 0:07:34]} 24. Rc7 {[%clk 0:06:01]}  Bd5 {[%clk 0:07:24]} 25. Rf1 {[%clk 0:04:47]}  Bxa2 {[%clk 0:07:10]} 26. Rf3 {[%clk 0:04:17]}  Qe5 {[%clk 0:06:55]} 27. Qh4 {[%clk 0:04:11]}  g6 {[%clk 0:05:12]} 28. b3 {[%clk 0:04:13]}  Qa1+ {[%clk 0:03:37]} 29. Kh2 {[%clk 0:04:12]}  Qe5+ {[%clk 0:03:38]} 30. Kh1 {[%clk 0:04:00]}  Qa1+ {[%clk 0:03:32]} 31. Kh2 {[%clk 0:03:59]}  Qe5+ {[%clk 0:03:33]} 32. Kh1 {[%clk 0:03:58]} 1/2-1/2


[Site "Internet"]

[Event "Chessable Masters - Torneo preliminare"]
[White "Dreev, Aleksey"]
[Black "Makhnev, Denis"]
[WhiteFideId "4100107"]
[BlackFideId "13707647"]
[WhiteElo "2557"]
[BlackElo "2505"]
[Result "1/2-1/2"]
[Round "1"]
[TimeControl "600+2"]
[Date "2023.03.13"]
[WhiteClock "0:00:20"]
[BlackClock "0:00:11"]

1. d4 {[%clk 0:09:58]}  Nf6 {[%clk 0:10:00]} 2. c4 {[%clk 0:09:58]}  e6 {[%clk 0:10:01]} 3. Nc3 {[%clk 0:09:58]}  Bb4 {[%clk 0:10:02]} 4. Qc2 {[%clk 0:09:55]}  d5 {[%clk 0:10:02]} 5. a3 {[%clk 0:09:56]}  Bxc3+ {[%clk 0:09:43]} 6. Qxc3 {[%clk 0:09:58]}  dxc4 {[%clk 0:09:45]} 7. Qxc4 {[%clk 0:09:55]}  b6 {[%clk 0:09:42]} 8. Bg5 {[%clk 0:09:35]}  Ba6 {[%clk 0:09:35]} 9. Qa4+ {[%clk 0:09:32]}  Qd7 {[%clk 0:09:35]} 10. Qxd7+ {[%clk 0:09:32]}  Nbxd7 {[%clk 0:09:26]} 11. Nf3 {[%clk 0:09:10]}  c5 {[%clk 0:08:42]} 12. Bxf6 {[%clk 0:09:03]}  gxf6 {[%clk 0:08:40]} 13. e3 {[%clk 0:09:03]}  Bxf1 {[%clk 0:08:37]} 14. Rxf1 {[%clk 0:09:03]}  Ke7 {[%clk 0:08:34]} 15. Ke2 {[%clk 0:09:02]}  Rhc8 {[%clk 0:08:15]} 16. Rfc1 {[%clk 0:08:58]}  c4 {[%clk 0:07:34]} 17. Nd2 {[%clk 0:08:10]}  b5 {[%clk 0:07:34]} 18. b3 {[%clk 0:08:11]}  cxb3 {[%clk 0:05:07]} 19. Nxb3 {[%clk 0:08:11]}  f5 {[%clk 0:05:09]} 20. Na5 {[%clk 0:07:58]}  Nb6 {[%clk 0:04:49]} 21. f3 {[%clk 0:07:34]}  a6 {[%clk 0:04:13]} 22. Kd3 {[%clk 0:06:46]}  Kd7 {[%clk 0:03:25]} 23. e4 {[%clk 0:06:16]}  fxe4+ {[%clk 0:03:26]} 24. fxe4 {[%clk 0:06:17]}  Na4 {[%clk 0:03:28]} 25. e5 {[%clk 0:05:44]}  h5 {[%clk 0:03:23]} 26. Nb7 {[%clk 0:05:23]}  Nb2+ {[%clk 0:03:07]} 27. Ke4 {[%clk 0:05:16]}  Rg8 {[%clk 0:03:08]} 28. Kf3 {[%clk 0:04:29]}  Rg4 {[%clk 0:02:40]} 29. Nc5+ {[%clk 0:04:23]}  Ke7 {[%clk 0:02:37]} 30. Ne4 {[%clk 0:04:23]}  Nc4 {[%clk 0:02:38]} 31. a4 {[%clk 0:04:06]}  Rd8 {[%clk 0:01:54]} 32. h3 {[%clk 0:03:53]}  Rg6 {[%clk 0:00:53]} 33. axb5 {[%clk 0:02:40]}  axb5 {[%clk 0:00:55]} 34. Rd1 {[%clk 0:01:43]}  h4 {[%clk 0:00:56]} 35. Kf2 {[%clk 0:01:27]}  Kf8 {[%clk 0:00:10]} 36. Rab1 {[%clk 0:01:15]}  Ra8 {[%clk 0:00:09]} 37. Ra1 {[%clk 0:01:08]}  Rd8 {[%clk 0:00:10]} 38. Rab1 {[%clk 0:00:24]}  Ra8 {[%clk 0:00:10]} 39. Ra1 {[%clk 0:00:20]}  Rd8 {[%clk 0:00:11]} 1/2-1/2


[Site "Internet"]